[Event "Early-Titled-Tuesday-Blitz-April-02-2024"]
[Site "Chess.com"]
[Date "2024.04.02"]
[Round "10"]
[White "Saxar85"]
[Black "viktorskliarov"]
[Result "1-0"]
[WhiteElo "2741"]
[BlackElo "2613"]
[TimeControl "180+1"]
[EndTime "9:56:14 PDT"]
[Termination "Saxar85 won by resignation"]

1. Nf3 {[%clk 0:03:00.9]} 1... c5 {[%clk 0:02:57.2]} 2. e4 {[%clk 0:02:58.3]}
2... Nc6 {[%clk 0:02:57.5]} 3. Nc3 {[%clk 0:02:56.6]} 3... Nf6 {[%clk
0:02:57.4]} 4. Bb5 {[%clk 0:02:55.4]} 4... Nd4 {[%clk 0:02:57.7]} 5. e5 {[%clk
0:02:51.7]} 5... Nxb5 {[%clk 0:02:57.9]} 6. Nxb5 {[%clk 0:02:51.5]} 6... Nd5
{[%clk 0:02:58.5]} 7. O-O {[%clk 0:02:47.8]} 7... a6 {[%clk 0:02:56.7]} 8. Nc3
{[%clk 0:02:47.2]} 8... Nxc3 {[%clk 0:02:47.6]} 9. dxc3 {[%clk 0:02:47]} 9... d5
{[%clk 0:02:47.6]} 10. exd6 {[%clk 0:02:46.8]} 10... Qxd6 {[%clk 0:02:47.6]} 11.
Qe2 {[%clk 0:02:46.5]} 11... Bg4 {[%clk 0:02:28.3]} 12. Rd1 {[%clk 0:02:41.1]}
12... Qe6 {[%clk 0:02:19.8]} 13. Be3 {[%clk 0:02:37.2]} 13... Qc6 {[%clk
0:01:45.5]} 14. Rd2 {[%clk 0:02:15]} 14... Bxf3 {[%clk 0:00:58]} 15. Qxf3 {[%clk
0:02:14.1]} 15... Qxf3 {[%clk 0:00:58]} 16. gxf3 {[%clk 0:02:14.2]} 16... e6
{[%clk 0:00:58.6]} 17. Rad1 {[%clk 0:02:13.4]} 17... Be7 {[%clk 0:00:57.7]} 18.
Rd7 {[%clk 0:02:12.6]} 18... Rd8 {[%clk 0:00:41.7]} 19. Rxd8+ {[%clk 0:02:03]}
19... Bxd8 {[%clk 0:00:42]} 20. Bxc5 {[%clk 0:02:03.1]} 20... h5 {[%clk
0:00:39.4]} 21. Be3 {[%clk 0:01:56.9]} 21... h4 {[%clk 0:00:37.1]} 22. h3 {[%clk
0:01:56.5]} 22... Rh5 {[%clk 0:00:36.7]} 23. c4 {[%clk 0:01:53]} 23... Rf5
{[%clk 0:00:29.1]} 24. Kg2 {[%clk 0:01:52.4]} 24... Bf6 {[%clk 0:00:29.4]} 25.
b3 {[%clk 0:01:47.7]} 25... Be7 {[%clk 0:00:24.6]} 26. a4 {[%clk 0:01:46.7]}
26... g5 {[%clk 0:00:17.2]} 27. Rd4 {[%clk 0:01:42.2]} 27... Bc5 {[%clk
0:00:08.7]} 28. Rg4 {[%clk 0:01:41.3]} 28... Bxe3 {[%clk 0:00:05.9]} 29. fxe3
{[%clk 0:01:41.3]} 29... f6 {[%clk 0:00:06.5]} 30. Kf2 {[%clk 0:01:40.6]} 30...
a5 {[%clk 0:00:06.4]} 31. f4 {[%clk 0:01:38.5]} 31... Ke7 {[%clk 0:00:06.1]} 32.
Ke2 {[%clk 0:01:37.2]} 32... Rc5 {[%clk 0:00:06.1]} 33. fxg5 {[%clk 0:01:33.9]}
33... fxg5 {[%clk 0:00:06.2]} 34. Rd4 {[%clk 0:01:33.3]} 34... b6 {[%clk
0:00:04.9]} 35. Rd1 {[%clk 0:01:27.7]} 35... Rf5 {[%clk 0:00:04.8]} 36. Rg1
{[%clk 0:01:26.4]} 36... Kd6 {[%clk 0:00:04.8]} 37. e4 {[%clk 0:01:22.1]} 37...
Re5 {[%clk 0:00:02.8]} 38. Kd3 {[%clk 0:01:18.7]} 38... Ke7 {[%clk 0:00:02.4]}
39. Kd4 {[%clk 0:01:16.2]} 39... Rc5 {[%clk 0:00:02]} 40. e5 {[%clk 0:01:16.3]}
40... Rc8 {[%clk 0:00:01.3]} 41. Rxg5 {[%clk 0:01:16.2]} 41... Rd8+ {[%clk
0:00:01.8]} 42. Ke3 {[%clk 0:01:16.3]} 42... Rd1 {[%clk 0:00:02.3]} 43. Rg7+
{[%clk 0:01:14.3]} 43... Ke8 {[%clk 0:00:02.8]} 44. Rh7 {[%clk 0:01:14.2]} 44...
Re1+ {[%clk 0:00:02.1]} 45. Kd4 {[%clk 0:01:14.1]} 45... Rd1+ {[%clk 0:00:02.2]}
46. Kc3 {[%clk 0:01:12.9]} 46... Re1 {[%clk 0:00:02.7]} 47. Rxh4 {[%clk
0:01:06.9]} 47... Rxe5 {[%clk 0:00:03.4]} 48. Rh7 {[%clk 0:01:06.6]} 48... Re2
{[%clk 0:00:03.2]} 49. Rb7 {[%clk 0:01:04.3]} 49... Re3+ {[%clk 0:00:03.3]} 50.
Kd4 {[%clk 0:01:04.3]} 50... Rxh3 {[%clk 0:00:04.2]} 51. Rxb6 {[%clk 0:01:04.3]}
51... Ke7 {[%clk 0:00:04.7]} 52. Ra6 {[%clk 0:01:03.6]} 52... Rh2 {[%clk
0:00:05]} 53. Rxa5 {[%clk 0:01:03.4]} 53... Rxc2 {[%clk 0:00:05.2]} 54. Rb5
{[%clk 0:01:00.2]} 54... Ra2 {[%clk 0:00:05.5]} 55. a5 {[%clk 0:00:58.4]} 1-0

[Event "Early-Titled-Tuesday-Blitz-April-02-2024"]
[Site "Chess.com"]
[Date "2024.04.02"]
[Round "10"]
[White "vangulio"]
[Black "FlemingA"]
[Result "1-0"]
[WhiteElo "2565"]
[BlackElo "2455"]
[TimeControl "180+1"]
[EndTime "9:56:17 PDT"]
[Termination "vangulio won by resignation"]

1. e4 {[%clk 0:02:52.8]} 1... e5 {[%clk 0:02:58.9]} 2. Nf3 {[%clk 0:02:52.5]}
2... Nc6 {[%clk 0:02:57]} 3. Bb5 {[%clk 0:02:51.8]} 3... Nge7 {[%clk 0:02:54.6]}
4. Nc3 {[%clk 0:02:48.6]} 4... g6 {[%clk 0:02:54.6]} 5. d4 {[%clk 0:02:47.4]}
5... exd4 {[%clk 0:02:53.4]} 6. Nd5 {[%clk 0:02:46.4]} 6... Bg7 {[%clk
0:02:52.1]} 7. Bg5 {[%clk 0:02:43.9]} 7... h6 {[%clk 0:02:36.2]} 8. Bf6 {[%clk
0:02:38.2]} 8... Bxf6 {[%clk 0:02:24.2]} 9. Nxf6+ {[%clk 0:02:35.7]} 9... Kf8
{[%clk 0:02:24.7]} 10. Nxd4 {[%clk 0:02:23.6]} 10... a6 {[%clk 0:02:16.2]} 11.
Bc4 {[%clk 0:01:44.2]} 11... Kg7 {[%clk 0:02:09.3]} 12. Nd5 {[%clk 0:01:32.3]}
12... Nxd5 {[%clk 0:02:06]} 13. Bxd5 {[%clk 0:01:31.9]} 13... Re8 {[%clk
0:01:56.9]} 14. O-O {[%clk 0:01:30.5]} 14... Nxd4 {[%clk 0:01:55.5]} 15. Qxd4+
{[%clk 0:01:29.9]} 15... Qf6 {[%clk 0:01:56.4]} 16. Qb4 {[%clk 0:01:16.7]} 16...
c6 {[%clk 0:01:47.4]} 17. Bb3 {[%clk 0:01:16.6]} 17... a5 {[%clk 0:01:38.5]} 18.
Qc5 {[%clk 0:00:55.1]} 18... Rxe4 {[%clk 0:01:24.9]} 19. Rae1 {[%clk 0:00:47.4]}
19... d6 {[%clk 0:01:07.4]} 20. Qb6 {[%clk 0:00:40.6]} 20... Rb4 {[%clk
0:00:49.9]} 21. Qc7 {[%clk 0:00:36.6]} 21... Bf5 {[%clk 0:00:48.8]} 22. Re7
{[%clk 0:00:31.9]} 22... d5 {[%clk 0:00:48.5]} 23. a3 {[%clk 0:00:26.5]} 23...
Re4 {[%clk 0:00:47.2]} 24. Rxe4 {[%clk 0:00:25.2]} 24... Bxe4 {[%clk 0:00:48.1]}
25. Qxb7 {[%clk 0:00:25.2]} 25... Re8 {[%clk 0:00:23.3]} 26. f3 {[%clk
0:00:22.9]} 26... Bf5 {[%clk 0:00:18.4]} 27. Qb6 {[%clk 0:00:21.6]} 27... Re2
{[%clk 0:00:09.9]} 28. Rf2 {[%clk 0:00:17.2]} 28... Re1+ {[%clk 0:00:05.6]} 29.
Rf1 {[%clk 0:00:17.6]} 29... Rxf1+ {[%clk 0:00:06.1]} 30. Kxf1 {[%clk
0:00:17.8]} 30... Qxb2 {[%clk 0:00:07]} 31. Qxc6 {[%clk 0:00:17.7]} 31... Qc1+
{[%clk 0:00:06.6]} 32. Ke2 {[%clk 0:00:17.1]} 32... Qf4 {[%clk 0:00:04.5]} 33.
Qxd5 {[%clk 0:00:15.6]} 33... Be6 {[%clk 0:00:05]} 34. Qe4 {[%clk 0:00:15]}
34... Qxe4+ {[%clk 0:00:02.8]} 35. fxe4 {[%clk 0:00:15.9]} 35... Bxb3 {[%clk
0:00:02.9]} 36. cxb3 {[%clk 0:00:16.5]} 36... Kf6 {[%clk 0:00:03.8]} 37. Ke3
{[%clk 0:00:16.9]} 37... Ke5 {[%clk 0:00:03.9]} 38. b4 {[%clk 0:00:17.2]} 38...
axb4 {[%clk 0:00:04.8]} 39. axb4 {[%clk 0:00:17.9]} 39... f5 {[%clk 0:00:05.7]}
40. exf5 {[%clk 0:00:18.1]} 40... gxf5 {[%clk 0:00:06.6]} 41. g3 {[%clk
0:00:18.2]} 1-0

[Event "Early-Titled-Tuesday-Blitz-April-02-2024"]
[Site "Chess.com"]
[Date "2024.04.02"]
[Round "10"]
[White "Aleksandar-Topalov"]
[Black "ricaurtelopezj1955"]
[Result "1-0"]
[WhiteElo "2337"]
[BlackElo "2161"]
[TimeControl "180+1"]
[EndTime "9:56:20 PDT"]
[Termination "Aleksandar-Topalov won on time"]

1. b3 {[%clk 0:02:58.7]} 1... e5 {[%clk 0:02:55.9]} 2. Bb2 {[%clk 0:02:53.1]}
2... Nc6 {[%clk 0:02:53.1]} 3. e3 {[%clk 0:02:53.1]} 3... a6 {[%clk 0:02:51.7]}
4. c4 {[%clk 0:02:40]} 4... Nf6 {[%clk 0:02:43.6]} 5. Nf3 {[%clk 0:02:39.4]}
5... e4 {[%clk 0:02:39.1]} 6. Nd4 {[%clk 0:02:39.4]} 6... Bc5 {[%clk 0:02:30.9]}
7. Be2 {[%clk 0:02:34.7]} 7... O-O {[%clk 0:02:28.3]} 8. O-O {[%clk 0:02:34.7]}
8... Re8 {[%clk 0:02:26.1]} 9. f4 {[%clk 0:02:17.4]} 9... d5 {[%clk 0:01:57.7]}
10. Nxc6 {[%clk 0:02:09.3]} 10... bxc6 {[%clk 0:01:55.6]} 11. cxd5 {[%clk
0:02:08.7]} 11... cxd5 {[%clk 0:01:47.8]} 12. Qc2 {[%clk 0:02:04.2]} 12... Bb6
{[%clk 0:01:45.6]} 13. Nc3 {[%clk 0:01:47]} 13... d4 {[%clk 0:01:37]} 14. exd4
{[%clk 0:01:36.8]} 14... Qxd4+ {[%clk 0:01:29.9]} 15. Kh1 {[%clk 0:01:36.8]}
15... Bg4 {[%clk 0:01:20.4]} 16. Na4 {[%clk 0:01:30.1]} 16... Qd6 {[%clk
0:01:06.6]} 17. Nxb6 {[%clk 0:01:28.9]} 17... cxb6 {[%clk 0:01:01.9]} 18. Bxf6
{[%clk 0:01:27.8]} 18... Bxe2 {[%clk 0:01:00.3]} 19. Be5 {[%clk 0:01:24.4]}
19... Qg6 {[%clk 0:00:49]} 20. Rfe1 {[%clk 0:01:10.9]} 20... Rac8 {[%clk
0:00:45.9]} 21. Qb2 {[%clk 0:01:05.1]} 21... Bd3 {[%clk 0:00:38.6]} 22. Rac1
{[%clk 0:01:02.3]} 22... f6 {[%clk 0:00:36.4]} 23. Bd4 {[%clk 0:00:57.9]} 23...
b5 {[%clk 0:00:30.2]} 24. Rc3 {[%clk 0:00:50]} 24... Qg4 {[%clk 0:00:26.7]} 25.
Be3 {[%clk 0:00:47.5]} 25... b4 {[%clk 0:00:23.6]} 26. Rxc8 {[%clk 0:00:44.2]}
26... Rxc8 {[%clk 0:00:23]} 27. Qd4 {[%clk 0:00:42.3]} 27... h5 {[%clk
0:00:17.8]} 28. Qxb4 {[%clk 0:00:31.4]} 28... Rc2 {[%clk 0:00:14.2]} 29. a4
{[%clk 0:00:21.8]} 29... h4 {[%clk 0:00:13.4]} 30. h3 {[%clk 0:00:21.7]} 30...
Qg3 {[%clk 0:00:12.6]} 31. Rg1 {[%clk 0:00:21.5]} 31... Kh7 {[%clk 0:00:07.6]}
32. Qb7 {[%clk 0:00:18.2]} 32... Rb2 {[%clk 0:00:04.5]} 33. b4 {[%clk 0:00:18]}
33... a5 {[%clk 0:00:03.4]} 34. b5 {[%clk 0:00:17.7]} 34... Rb4 {[%clk
0:00:02.3]} 35. b6 {[%clk 0:00:16.2]} 35... Rxa4 {[%clk 0:00:02.7]} 36. Qa7
{[%clk 0:00:16.3]} 36... Rb4 {[%clk 0:00:03.3]} 37. b7 {[%clk 0:00:16.5]} 1-0

[Event "Early-Titled-Tuesday-Blitz-April-02-2024"]
[Site "Chess.com"]
[Date "2024.04.02"]
[Round "10"]
[White "KNVB"]
[Black "vladgoncharov"]
[Result "1-0"]
[WhiteElo "2776"]
[BlackElo "2576"]
[TimeControl "180+1"]
[EndTime "9:56:21 PDT"]
[Termination "KNVB won on time"]

1. e4 {[%clk 0:03:00.9]} 1... e6 {[%clk 0:02:59.8]} 2. c3 {[%clk 0:03:00.8]}
2... d5 {[%clk 0:02:59]} 3. Nf3 {[%clk 0:03:01.7]} 3... c5 {[%clk 0:02:55]} 4.
e5 {[%clk 0:02:51.2]} 4... Nc6 {[%clk 0:02:54.1]} 5. Bb5 {[%clk 0:02:51.3]} 5...
Bd7 {[%clk 0:02:53.3]} 6. Qe2 {[%clk 0:02:45.5]} 6... Nge7 {[%clk 0:02:47.5]} 7.
O-O {[%clk 0:02:43.5]} 7... Qc7 {[%clk 0:02:37.8]} 8. Re1 {[%clk 0:02:42]} 8...
Ng6 {[%clk 0:02:34.6]} 9. d4 {[%clk 0:02:40.6]} 9... Be7 {[%clk 0:02:24.9]} 10.
Be3 {[%clk 0:02:31.6]} 10... c4 {[%clk 0:02:14.2]} 11. Bxc6 {[%clk 0:02:12.3]}
11... bxc6 {[%clk 0:02:10.6]} 12. Nbd2 {[%clk 0:02:13.2]} 12... O-O {[%clk
0:01:56.3]} 13. b3 {[%clk 0:02:08.9]} 13... cxb3 {[%clk 0:01:53.7]} 14. Nxb3
{[%clk 0:02:07.9]} 14... f6 {[%clk 0:01:53.5]} 15. exf6 {[%clk 0:02:02.3]} 15...
Bxf6 {[%clk 0:01:50.2]} 16. Bg5 {[%clk 0:01:42.3]} 16... Rae8 {[%clk 0:01:28.5]}
17. Nc5 {[%clk 0:01:31.1]} 17... Bc8 {[%clk 0:01:27.6]} 18. Nd3 {[%clk
0:00:53.7]} 18... Ba6 {[%clk 0:01:24.5]} 19. Qe3 {[%clk 0:00:47.7]} 19... Bxd3
{[%clk 0:01:17.7]} 20. Qxd3 {[%clk 0:00:48.6]} 20... c5 {[%clk 0:00:48.5]} 21.
Bxf6 {[%clk 0:00:16.3]} 21... Rxf6 {[%clk 0:00:43.3]} 22. g3 {[%clk 0:00:02.8]}
22... Ref8 {[%clk 0:00:38.4]} 23. Re3 {[%clk 0:00:03.2]} 23... cxd4 {[%clk
0:00:35.4]} 24. cxd4 {[%clk 0:00:03.5]} 24... Ne7 {[%clk 0:00:17.2]} 25. Rae1
{[%clk 0:00:02.9]} 25... Qd6 {[%clk 0:00:16.1]} 26. h4 {[%clk 0:00:01.7]} 26...
Nf5 {[%clk 0:00:14.4]} 27. Re5 {[%clk 0:00:02.2]} 27... h6 {[%clk 0:00:13.4]}
28. Nh2 {[%clk 0:00:01.5]} 28... h5 {[%clk 0:00:02.8]} 29. R1e2 {[%clk
0:00:01.5]} 29... Nh6 {[%clk 0:00:02.4]} 30. Kg2 {[%clk 0:00:01.9]} 30... Ng4
{[%clk 0:00:02.2]} 31. Nxg4 {[%clk 0:00:02.4]} 31... hxg4 {[%clk 0:00:02.5]} 32.
Rg5 {[%clk 0:00:02.7]} 32... Rf3 {[%clk 0:00:01]} 33. Qg6 {[%clk 0:00:02.8]} 1-0

[Event "Early-Titled-Tuesday-Blitz-April-02-2024"]
[Site "Chess.com"]
[Date "2024.04.02"]
[Round "10"]
[White "SteinerPro12"]
[Black "Tol_Tol"]
[Result "1-0"]
[WhiteElo "2240"]
[BlackElo "2273"]
[TimeControl "180+1"]
[EndTime "9:56:21 PDT"]
[Termination "SteinerPro12 won on time"]

1. e4 {[%clk 0:03:00.9]} 1... c5 {[%clk 0:02:55.2]} 2. a3 {[%clk 0:03:01.1]}
2... e5 {[%clk 0:02:43.1]} 3. Bc4 {[%clk 0:02:54.2]} 3... Nf6 {[%clk 0:02:42.4]}
4. d3 {[%clk 0:02:54.2]} 4... Be7 {[%clk 0:02:42.2]} 5. Nc3 {[%clk 0:02:53.1]}
5... O-O {[%clk 0:02:40.8]} 6. Nge2 {[%clk 0:02:45.4]} 6... a6 {[%clk
0:02:40.8]} 7. O-O {[%clk 0:02:42.9]} 7... b5 {[%clk 0:02:40.5]} 8. Ba2 {[%clk
0:02:43.3]} 8... Bb7 {[%clk 0:02:40.2]} 9. f4 {[%clk 0:02:42.1]} 9... d6 {[%clk
0:02:14.7]} 10. Ng3 {[%clk 0:02:20.7]} 10... Nc6 {[%clk 0:02:00.4]} 11. Nd5
{[%clk 0:02:15.4]} 11... exf4 {[%clk 0:01:49.3]} 12. Bxf4 {[%clk 0:02:13.6]}
12... Nd7 {[%clk 0:01:31.5]} 13. Nf5 {[%clk 0:02:04.4]} 13... Nde5 {[%clk
0:01:23.7]} 14. Qd2 {[%clk 0:01:51.7]} 14... Re8 {[%clk 0:01:00]} 15. h3 {[%clk
0:01:48.3]} 15... Kh8 {[%clk 0:00:53.7]} 16. Rf2 {[%clk 0:01:48.2]} 16... Bf8
{[%clk 0:00:51]} 17. Raf1 {[%clk 0:01:46.9]} 17... f6 {[%clk 0:00:50.7]} 18. Be3
{[%clk 0:01:41.4]} 18... Ne7 {[%clk 0:00:40.9]} 19. Nfxe7 {[%clk 0:01:36.8]}
19... Bxe7 {[%clk 0:00:40.8]} 20. Qe2 {[%clk 0:01:21.4]} 20... Bf8 {[%clk
0:00:31.1]} 21. Qh5 {[%clk 0:01:19.2]} 21... Bc8 {[%clk 0:00:27.2]} 22. Rf4
{[%clk 0:01:06.1]} 22... g6 {[%clk 0:00:17.9]} 23. Qe2 {[%clk 0:00:55.8]} 23...
f5 {[%clk 0:00:15.5]} 24. exf5 {[%clk 0:00:43.5]} 24... Bxf5 {[%clk 0:00:14.3]}
25. Qf2 {[%clk 0:00:37.6]} 25... Bg7 {[%clk 0:00:12.6]} 26. Bd2 {[%clk
0:00:35.6]} 26... Nc6 {[%clk 0:00:09.9]} 27. Ne3 {[%clk 0:00:28.2]} 27... Nd4
{[%clk 0:00:08.3]} 28. g4 {[%clk 0:00:23.1]} 28... Be6 {[%clk 0:00:06.5]} 29.
Bxe6 {[%clk 0:00:22]} 29... Nxe6 {[%clk 0:00:05.6]} 30. Rf7 {[%clk 0:00:20.6]}
30... Ng5 {[%clk 0:00:05.1]} 31. Rf3 {[%clk 0:00:17.3]} 31... Nxf3+ {[%clk
0:00:04.8]} 32. Qxf3 {[%clk 0:00:18.1]} 32... Rf8 {[%clk 0:00:05.4]} 33. Qd5
{[%clk 0:00:17.3]} 33... Rxf1+ {[%clk 0:00:05.7]} 34. Nxf1 {[%clk 0:00:18]}
34... Ra7 {[%clk 0:00:04.4]} 35. Ng3 {[%clk 0:00:17.1]} 35... Re7 {[%clk
0:00:04.4]} 36. Ne4 {[%clk 0:00:17.3]} 36... Be5 {[%clk 0:00:04.2]} 37. Bg5
{[%clk 0:00:14]} 1-0

[Event "Early-Titled-Tuesday-Blitz-April-02-2024"]
[Site "Chess.com"]
[Date "2024.04.02"]
[Round "10"]
[White "ViIIagra"]
[Black "Witik"]
[Result "1-0"]
[WhiteElo "2908"]
[BlackElo "2794"]
[TimeControl "180+1"]
[EndTime "9:56:27 PDT"]
[Termination "ViIIagra won on time"]

1. e4 {[%clk 0:03:00.9]} 1... e5 {[%clk 0:02:58.6]} 2. Nc3 {[%clk 0:02:53.1]}
2... Nf6 {[%clk 0:02:58.6]} 3. Nge2 {[%clk 0:02:49.1]} 3... Nc6 {[%clk
0:02:56.7]} 4. g3 {[%clk 0:02:46.3]} 4... h5 {[%clk 0:02:52.7]} 5. h3 {[%clk
0:02:46.4]} 5... Bc5 {[%clk 0:02:51.1]} 6. Bg2 {[%clk 0:02:46.6]} 6... Nd4
{[%clk 0:02:38.7]} 7. d3 {[%clk 0:02:40]} 7... c6 {[%clk 0:02:31]} 8. a3 {[%clk
0:02:10.8]} 8... b5 {[%clk 0:02:23.9]} 9. Bg5 {[%clk 0:02:02.2]} 9... d6 {[%clk
0:02:21]} 10. Qd2 {[%clk 0:02:01.5]} 10... Ne6 {[%clk 0:02:17.1]} 11. Be3 {[%clk
0:01:55.8]} 11... Qb6 {[%clk 0:02:16]} 12. Bxc5 {[%clk 0:01:50]} 12... dxc5
{[%clk 0:02:14.1]} 13. f4 {[%clk 0:01:49.7]} 13... h4 {[%clk 0:01:55]} 14. g4
{[%clk 0:01:34.4]} 14... Bb7 {[%clk 0:01:42.5]} 15. fxe5 {[%clk 0:01:17.7]}
15... Nd7 {[%clk 0:01:42.6]} 16. Nf4 {[%clk 0:01:18.4]} 16... Nd4 {[%clk
0:01:40.6]} 17. Nce2 {[%clk 0:01:13]} 17... Nxe5 {[%clk 0:01:39.6]} 18. Nxd4
{[%clk 0:01:13]} 18... cxd4 {[%clk 0:01:40.5]} 19. O-O {[%clk 0:01:13.3]} 19...
O-O-O {[%clk 0:01:25.2]} 20. Nh5 {[%clk 0:01:08.1]} 20... Rdg8 {[%clk
0:01:05.4]} 21. Qg5 {[%clk 0:00:55.3]} 21... f6 {[%clk 0:01:05.6]} 22. Qxh4
{[%clk 0:00:53.2]} 22... c5 {[%clk 0:00:57.9]} 23. Qg3 {[%clk 0:00:51.2]} 23...
Kb8 {[%clk 0:00:53.3]} 24. Nf4 {[%clk 0:00:51]} 24... Ka8 {[%clk 0:00:53.1]} 25.
Nd5 {[%clk 0:00:48]} 25... Bxd5 {[%clk 0:00:48.8]} 26. exd5 {[%clk 0:00:48.9]}
26... Qd6 {[%clk 0:00:49]} 27. Rae1 {[%clk 0:00:48.6]} 27... a6 {[%clk
0:00:32.5]} 28. Re2 {[%clk 0:00:48.8]} 28... Ka7 {[%clk 0:00:32.1]} 29. Rfe1
{[%clk 0:00:44.8]} 29... Re8 {[%clk 0:00:32.2]} 30. c3 {[%clk 0:00:45.4]} 30...
Re7 {[%clk 0:00:30.9]} 31. cxd4 {[%clk 0:00:36.5]} 31... cxd4 {[%clk 0:00:31.8]}
32. Qf2 {[%clk 0:00:36.9]} 32... Qb6 {[%clk 0:00:30.8]} 33. Rc2 {[%clk
0:00:36.1]} 33... Rhe8 {[%clk 0:00:26.9]} 34. Rd1 {[%clk 0:00:26.5]} 34... Kb8
{[%clk 0:00:23.5]} 35. Be4 {[%clk 0:00:26.5]} 35... g6 {[%clk 0:00:21.5]} 36.
Rdc1 {[%clk 0:00:24.8]} 36... f5 {[%clk 0:00:20.5]} 37. Rc6 {[%clk 0:00:23.5]}
37... Nxc6 {[%clk 0:00:17.4]} 38. Rxc6 {[%clk 0:00:24.4]} 38... Qa5 {[%clk
0:00:11]} 39. d6 {[%clk 0:00:19.6]} 39... Rxe4 {[%clk 0:00:07.3]} 40. dxe4
{[%clk 0:00:18.9]} 40... Rxe4 {[%clk 0:00:08]} 41. d7 {[%clk 0:00:18.7]} 1-0

[Event "Early-Titled-Tuesday-Blitz-April-02-2024"]
[Site "Chess.com"]
[Date "2024.04.02"]
[Round "10"]
[White "viktorgen2021"]
[Black "WiktoriaPOL"]
[Result "1-0"]
[WhiteElo "2499"]
[BlackElo "2339"]
[TimeControl "180+1"]
[EndTime "9:56:27 PDT"]
[Termination "viktorgen2021 won by checkmate"]

1. d4 {[%clk 0:02:58.7]} 1... Nf6 {[%clk 0:02:58.5]} 2. Nf3 {[%clk 0:02:58.1]}
2... g6 {[%clk 0:02:58.8]} 3. g3 {[%clk 0:02:57.6]} 3... Bg7 {[%clk 0:02:59.1]}
4. Bg2 {[%clk 0:02:58.2]} 4... O-O {[%clk 0:02:59.3]} 5. O-O {[%clk 0:02:58.9]}
5... d6 {[%clk 0:02:59.8]} 6. a4 {[%clk 0:02:57.9]} 6... Nbd7 {[%clk 0:02:59.7]}
7. Nc3 {[%clk 0:02:56.7]} 7... e5 {[%clk 0:03:00]} 8. e4 {[%clk 0:02:53.2]} 8...
c6 {[%clk 0:02:59.3]} 9. a5 {[%clk 0:02:49.8]} 9... Qe7 {[%clk 0:02:58.2]} 10.
Re1 {[%clk 0:02:49.2]} 10... h6 {[%clk 0:02:55]} 11. a6 {[%clk 0:02:47.1]} 11...
b6 {[%clk 0:02:54]} 12. b3 {[%clk 0:02:42.5]} 12... Qd8 {[%clk 0:02:15.4]} 13.
dxe5 {[%clk 0:02:38.1]} 13... dxe5 {[%clk 0:02:15.2]} 14. Qd6 {[%clk 0:02:37.8]}
14... Nb8 {[%clk 0:01:55.4]} 15. Rd1 {[%clk 0:01:57.4]} 15... Qxd6 {[%clk
0:01:50.6]} 16. Rxd6 {[%clk 0:01:56.1]} 16... Bxa6 {[%clk 0:01:47.1]} 17. Bxh6
{[%clk 0:01:40.2]} 17... Bxh6 {[%clk 0:01:34.1]} 18. Rxf6 {[%clk 0:01:39.4]}
18... Rd8 {[%clk 0:01:30.9]} 19. Nxe5 {[%clk 0:01:00.5]} 19... Bg7 {[%clk
0:01:25.7]} 20. Nxc6 {[%clk 0:01:00.3]} 20... Rd7 {[%clk 0:00:29.6]} 21. e5
{[%clk 0:00:26.4]} 21... Bxf6 {[%clk 0:00:15.5]} 22. exf6 {[%clk 0:00:27.3]}
22... Bb7 {[%clk 0:00:14.3]} 23. Ne7+ {[%clk 0:00:23.3]} 23... Kf8 {[%clk
0:00:11.6]} 24. Bxb7 {[%clk 0:00:18.4]} 24... Rxb7 {[%clk 0:00:12.5]} 25. Ncd5
{[%clk 0:00:14.1]} 25... Nd7 {[%clk 0:00:12.1]} 26. Nc6 {[%clk 0:00:10.3]} 26...
Rc8 {[%clk 0:00:09.4]} 27. Nd4 {[%clk 0:00:08.8]} 27... Rc5 {[%clk 0:00:05.8]}
28. c4 {[%clk 0:00:08.8]} 28... a5 {[%clk 0:00:04.1]} 29. Re1 {[%clk 0:00:08.7]}
29... b5 {[%clk 0:00:02.5]} 30. Re7 {[%clk 0:00:02.8]} 30... bxc4 {[%clk
0:00:02]} 31. bxc4 {[%clk 0:00:03]} 31... Rxc4 {[%clk 0:00:02.1]} 32. Ne6+
{[%clk 0:00:01.4]} 32... fxe6 {[%clk 0:00:02]} 33. Nf4 {[%clk 0:00:02.3]} 33...
Rc1+ {[%clk 0:00:01.9]} 34. Kg2 {[%clk 0:00:02.6]} 34... Rbb1 {[%clk 0:00:01.7]}
35. Nxg6+ {[%clk 0:00:02.9]} 35... Kg8 {[%clk 0:00:01.8]} 36. Rg7# {[%clk
0:00:03.8]} 1-0